fUST/lending_fUST_20250422
["ID","MTS","AMOUNT","RATE_DAILY","PERIOD"]
[358601728,1745301045185,-477.23616959,0.00022191,2]
[358601729,1745301045194,-7322.75,0.00022191,2]
[358601730,1745301045204,-500.0,0.00022191,2]
[358601731,1745301045215,-887.31,0.00022191,2]
[358601732,1745301045226,-419.58069987,0.00022191,2]
[358601733,1745301045237,-500.2132619,0.00022191,2]
[358601734,1745301045248,-225.36507192,0.00022191,2]
[358601735,1745301045257,-500.0,0.00022191,2]
[358601736,1745301045267,-500.0,0.00022191,2]
[358601737,1745301045276,-500.0,0.00022191,2]
[358601738,1745301045286,-500.0,0.00022191,2]
[358601739,1745301045295,-514.61586771,0.00022191,2]
[358601740,1745301045304,-500.0,0.00022191,2]
[358601741,1745301045315,-500.0,0.00022191,2]
[358601742,1745301045325,-500.0,0.00022191,2]
[358601743,1745301045335,-500.0,0.00022191,2]
[358601744,1745301045344,-361.3287945,0.000222,2]
[358601745,1745301045354,-722.657589,0.000222,2]
[358601746,1745301045364,-361.3287945,0.000222,2]
[358601747,1745301045373,-302.55878051,0.00022228,2]
[358601748,1745301045383,-316.36818153,0.00022297,2]
[358601749,1745301045392,-306.0,0.00022301,2]
[358601750,1745301045401,-174.7434727,0.00022329,2]
[358601751,1745301045411,-163.0666654,0.00022329,2]
[358601752,1745301045421,-349.3910948,0.00022329,2]
[358601753,1745301045430,-174.7434727,0.00022329,2]
[358601754,1745301045439,-174.7434727,0.00022329,2]
[358601755,1745301045449,-174.7434727,0.00022329,2]
[358601756,1745301045458,-174.7434727,0.00022329,2]
[358601757,1745301045468,-174.7434727,0.00022329,2]
[358601758,1745301045478,-174.7434727,0.00022329,2]
[358601759,1745301045489,-174.7434727,0.00022329,2]
[358601760,1745301045499,-174.7434727,0.00022329,2]
[358601761,1745301045510,-348.3367382,0.00022329,2]
[358601762,1745301045586,-726.31254594,0.00022422,2]
[358601763,1745301045597,-302.55878051,0.00022434,2]
[358601764,1745301045607,-174.6476221,0.00022438,2]
[358601765,1745301045616,-1648.96,0.00022463,2]
[358601766,1745301045626,-1648.96,0.00022463,2]
[358601767,1745301045635,-1648.96,0.00022463,2]
[358601768,1745301045645,-1648.96,0.00022463,2]
[358601769,1745301045655,-1649.16,0.00022463,2]
[358601770,1745301045664,-500.0,0.00022464,2]
[358601771,1745301045675,-151.0,0.00022465,2]
[358601772,1745301045685,-500.0,0.00022465,2]
[358601773,1745301045694,-198.94829136,0.00022465,2]
[358601774,1745301045704,-151.0,0.00022465,2]
[358601775,1745301045714,-273.54287354,0.00022465,2]
[358601776,1745301045724,-500.0,0.00022465,2]
[358601777,1745301045733,-500.0,0.00022465,2]
[358601778,1745301045743,-161.43219572,0.00022465,2]
[358601779,1745301045753,-500.0,0.00022465,2]
[358601780,1745301045763,-500.0,0.00022465,2]
[358601781,1745301045772,-500.0,0.00022465,2]
[358601782,1745301045786,-500.0,0.00022465,2]
[358601783,1745301045795,-500.0,0.00022465,2]
[358601784,1745301045809,-500.0,0.00022465,2]
[358601785,1745301045818,-315.70286411,0.00022465,2]
[358601786,1745301045828,-500.0,0.00022465,2]
[358601787,1745301045838,-500.0,0.00022465,2]
[358601788,1745301045850,-500.0,0.00022465,2]
[358601789,1745301045859,-500.0,0.00022465,2]
[358601790,1745301045869,-503.77678552,0.00022465,2]
[358601791,1745301045880,-500.0,0.00022465,2]
[358601792,1745301045889,-344.15260104,0.00022465,2]
[358601793,1745301045899,-500.0,0.00022465,2]
[358601794,1745301045908,-520.26820418,0.00022465,2]
[358601795,1745301045918,-500.0,0.00022465,2]
[358601797,1745301045928,-500.0,0.00022465,2]
[358601798,1745301045937,-500.0,0.00022465,2]
[358601799,1745301045947,-500.0,0.00022465,2]
[358601800,1745301045956,-503.05163335,0.00022465,2]
[358601801,1745301045966,-500.0,0.00022465,2]
[358601802,1745301045976,-500.0,0.00022465,2]
[358601803,1745301045985,-500.0,0.00022465,2]
[358601804,1745301045995,-500.0,0.00022465,2]
[358601805,1745301046006,-500.0,0.00022465,2]
[358601806,1745301046015,-501.39,0.00022465,2]
[358601807,1745301046025,-500.0,0.00022465,2]
[358601808,1745301046035,-500.0,0.00022465,2]
[358601809,1745301046044,-500.0,0.00022465,2]
[358601810,1745301046053,-500.0,0.00022465,2]
[358601811,1745301046064,-500.0,0.00022465,2]
[358601812,1745301046074,-500.0,0.00022465,2]
[358601813,1745301046084,-1107.89,0.00022465,2]
[358601814,1745301046094,-500.0,0.00022465,2]
[358601815,1745301046104,-502.67,0.00022465,2]
[358601816,1745301046114,-500.0,0.00022465,2]
[358601817,1745301046124,-500.0,0.00022465,2]
[358601818,1745301046133,-484.73078688,0.00022465,2]
[358601819,1745301046143,-500.0,0.00022465,2]
[358601820,1745301046152,-500.0,0.00022465,2]
[358601821,1745301046162,-500.0,0.00022465,2]
[358601822,1745301046174,-500.0,0.00022465,2]
[358601823,1745301046183,-500.0,0.00022465,2]
[358601824,1745301046193,-500.0,0.00022465,2]
[358601825,1745301046203,-500.0,0.00022465,2]
[358601826,1745301046213,-500.0,0.00022465,2]
[358601827,1745301046223,-500.0,0.00022465,2]
[358601828,1745301046234,-500.0,0.00022465,2]
[358601829,1745301046243,-500.0,0.00022465,2]
[358601830,1745301046253,-500.0,0.00022465,2]
[358601831,1745301046263,-670.84,0.00022465,2]
[358601832,1745301046273,-500.0,0.00022465,2]
[358601833,1745301046284,-508.53238347,0.00022465,2]
[358601834,1745301046294,-500.0,0.00022465,2]
[358601835,1745301046304,-509.00762613,0.00022465,2]
[358601836,1745301046314,-817.3,0.00022465,2]
[358601837,1745301046323,-500.0,0.00022465,2]
[358601838,1745301046333,-500.0,0.00022465,2]
[358601839,1745301046342,-626.4,0.00022465,2]
[358601840,1745301046351,-586.56270081,0.00022465,2]
[358601841,1745301046361,-507.62569581,0.00022465,2]
[358601842,1745301046371,-1428.76,0.00022465,2]
[358601843,1745301046380,-500.0,0.00022465,2]
[358601844,1745301046390,-507.3779276,0.00022465,2]
[358601845,1745301046400,-508.3476284,0.00022465,2]
[358601846,1745301046410,-500.0,0.00022465,2]
[358601847,1745301046420,-503.18806563,0.00022465,2]
[358601848,1745301046429,-500.0,0.00022465,2]
[358601849,1745301046439,-500.0,0.00022465,2]
[358601850,1745301046448,-500.0,0.00022465,2]
[358601851,1745301046459,-500.0,0.00022465,2]
[358601852,1745301046469,-508.4264532,0.00022465,2]
[358601853,1745301046479,-268.12950632,0.00022465,2]
[358601854,1745301046488,-500.0,0.00022465,2]
[358601855,1745301046498,-500.0,0.00022465,2]
[358601856,1745301046508,-703.89,0.00022465,2]
[358601857,1745301046519,-500.0,0.00022465,2]
[358601858,1745301046529,-500.0,0.00022465,2]
[358601859,1745301046540,-500.0,0.00022465,2]
[358601860,1745301046550,-585.6080226,0.00022465,2]
[358601861,1745301046560,-607.85,0.00022465,2]
[358601862,1745301046571,-639.48,0.00022465,2]
[358601863,1745301046580,-500.0,0.00022465,2]
[358601864,1745301046590,-500.0,0.00022465,2]
[358601865,1745301046599,-523.21,0.00022465,2]
[358601866,1745301046609,-500.0,0.00022465,2]
[358601867,1745301046618,-500.0,0.00022465,2]
[358601868,1745301046627,-500.0,0.00022465,2]
[358601869,1745301046638,-500.0,0.00022465,2]
[358601870,1745301046648,-500.0,0.00022465,2]
[358601871,1745301046658,-500.0,0.00022465,2]
[358601872,1745301046667,-500.0,0.00022465,2]
[358601873,1745301046677,-500.0,0.00022465,2]
[358601874,1745301046686,-500.0,0.00022465,2]
[358601875,1745301046696,-500.0,0.00022465,2]
[358601876,1745301046706,-622.08,0.00022465,2]
[358601877,1745301046715,-500.0,0.00022465,2]
[358601878,1745301046725,-500.0,0.00022465,2]
[358601879,1745301046735,-500.0,0.00022465,2]
[358601880,1745301046744,-500.0,0.00022465,2]
[358601881,1745301046752,-1122.82,0.00022465,2]
[358601882,1745301046762,-500.0,0.00022465,2]
[358601883,1745301046771,-536.10231859,0.00022465,2]
[358601884,1745301046781,-500.0,0.00022465,2]
[358601885,1745301046790,-500.0,0.00022465,2]
[358601886,1745301046800,-500.0,0.00022465,2]
[358601887,1745301046813,-500.0,0.00022465,2]
[358601888,1745301046823,-500.0,0.00022465,2]
[358601889,1745301046832,-500.0,0.00022465,2]
[358601890,1745301046842,-500.0,0.00022465,2]
[358601891,1745301046852,-500.0,0.00022465,2]
[358601892,1745301046861,-500.0,0.00022465,2]
[358601893,1745301046870,-500.0,0.00022465,2]
[358601894,1745301046880,-500.0,0.00022465,2]
[358601895,1745301046889,-500.0,0.00022465,2]
[358601896,1745301046899,-500.0,0.00022465,2]
[358601897,1745301046908,-500.0,0.00022465,2]
[358601898,1745301046918,-500.0,0.00022465,2]
[358601899,1745301046928,-500.0,0.00022465,2]
[358601900,1745301046937,-500.0,0.00022465,2]
[358601901,1745301046947,-500.0,0.00022465,2]
[358601902,1745301046957,-500.0,0.00022465,2]
[358601903,1745301046966,-500.0,0.00022465,2]
[358601904,1745301046975,-500.0,0.00022465,2]
[358601905,1745301047048,-500.0,0.00022465,2]
[358601906,1745301047058,-500.0,0.00022465,2]
[358601907,1745301047068,-672.46,0.00022465,2]
[358601908,1745301047077,-500.0,0.00022465,2]
[358601909,1745301047087,-500.0,0.00022465,2]
[358601910,1745301047096,-607.94683224,0.00022465,2]
[358601911,1745301047105,-500.0,0.00022465,2]
[358601912,1745301047115,-500.0,0.00022465,2]
[358601913,1745301047124,-500.0,0.00022465,2]
[358601914,1745301047134,-500.0,0.00022465,2]
[358601915,1745301047143,-500.0,0.00022465,2]
[358601916,1745301047153,-500.0,0.00022465,2]
[358601917,1745301047163,-320.58,0.00022465,2]
[358601918,1745301047172,-151.0,0.00022465,7]
[358601919,1745301047182,-500.0,0.00022465,2]
[358601920,1745301047195,-503.78011238,0.00022465,2]
[358601921,1745301047207,-500.0,0.00022465,2]
[358601922,1745301047219,-582.31,0.00022465,2]
[358601923,1745301047230,-1423.16,0.00022465,2]
[358601924,1745301047240,-500.0,0.00022465,2]
[358601925,1745301047251,-508.59104088,0.00022465,2]
[358601926,1745301047260,-790.6,0.00022465,2]
[358601927,1745301047270,-500.0,0.00022465,2]
[358601928,1745301047280,-500.0,0.00022465,2]
[358601929,1745301047290,-500.0,0.00022465,2]
[358601930,1745301047299,-500.0,0.00022465,2]
[358601931,1745301047309,-500.0,0.00022465,2]
[358601932,1745301047320,-506.94084466,0.00022465,2]
[358601933,1745301047331,-500.0,0.00022465,2]
[358601934,1745301047341,-524.51963385,0.00022465,2]
[358601935,1745301047351,-509.40793498,0.00022465,2]
[358601936,1745301047361,-151.0,0.00022465,7]
[358601937,1745301047370,-500.0,0.00022465,2]
[358601938,1745301047379,-500.0,0.00022465,2]
[358601939,1745301047388,-500.0,0.00022465,2]
[358601940,1745301047398,-500.0,0.00022465,2]
[358601941,1745301047408,-510.87703201,0.00022465,2]
[358601942,1745301047417,-653.7,0.00022465,2]
[358601943,1745301047428,-510.5142972,0.00022465,2]
[358601944,1745301047438,-500.0,0.00022465,2]
[358601945,1745301047448,-500.0,0.00022465,2]
[358601946,1745301047457,-1263.12,0.00022465,2]
[358601947,1745301047467,-500.0,0.00022465,2]
[358601948,1745301047477,-500.0,0.00022465,2]
[358601949,1745301047487,-505.71,0.00022465,2]
[358601950,1745301047496,-500.0,0.00022465,2]
[358601951,1745301047506,-500.0,0.00022465,2]
[358601952,1745301047515,-500.0,0.00022465,2]
[358601953,1745301047526,-601.15693754,0.00022465,2]
[358601954,1745301047535,-500.0,0.00022465,2]
[358601955,1745301047545,-500.0,0.00022465,2]
[358601956,1745301047555,-500.0,0.00022465,2]
[358601957,1745301047565,-500.0,0.00022465,2]
[358601958,1745301047574,-651.19,0.00022465,2]
[358601959,1745301047584,-196.192613,0.00022465,7]
[358601960,1745301047594,-1035.65,0.00022465,2]
[358601961,1745301047604,-500.0,0.00022465,2]
[358601962,1745301047614,-500.0,0.00022465,2]
[358601963,1745301047624,-506.31429696,0.00022465,2]
[358601964,1745301047634,-500.0,0.00022465,2]
[358601965,1745301047643,-500.0,0.00022465,2]
[358601966,1745301047653,-500.0,0.00022465,2]
[358601967,1745301047663,-500.0,0.00022465,2]
[358601968,1745301047673,-544.154836,0.00022465,2]
[358601969,1745301047683,-500.0,0.00022465,2]
[358601970,1745301047694,-500.0,0.00022465,2]
[358601971,1745301047703,-544.154836,0.00022465,2]
[358601972,1745301047713,-180.58174657,0.00022465,2]
[358601973,1745301047723,-541.43133261,0.00022465,2]
[358601974,1745301047733,-512.02898218,0.00022465,2]
[358601975,1745301047742,-500.0,0.00022465,2]
[358601976,1745301047752,-500.0,0.00022465,2]
[358601977,1745301047762,-1129.11,0.00022465,2]
[358601978,1745301047772,-1703.03,0.00022465,2]
[358601979,1745301047781,-511.12138387,0.00022465,2]
[358601980,1745301047791,-500.0,0.00022465,2]
[358601981,1745301047800,-620.05867112,0.00022465,2]
[358601982,1745301047814,-500.0,0.00022465,2]
[358601983,1745301047824,-161.71329656,0.00022465,2]
[358601984,1745301047833,-500.0,0.00022465,2]
[358601985,1745301047843,-1121.14921,0.00022465,7]
[358601986,1745301047855,-500.0,0.00022465,2]
[358601987,1745301047864,-500.0,0.00022465,2]
[358601988,1745301047874,-1121.14921,0.00022465,7]
[358601989,1745301047885,-5303.46,0.00022465,2]
[358601990,1745301047895,-635.55,0.00022465,2]
[358601991,1745301047904,-500.0,0.00022465,2]
[358601992,1745301047914,-731.76,0.00022465,2]
[358601993,1745301047923,-500.0,0.00022465,2]
[358601994,1745301047933,-505.84572035,0.00022465,2]
[358601995,1745301047942,-512.48,0.00022465,2]
[358601996,1745301047952,-500.0,0.00022465,2]
[358601997,1745301047961,-4446.02,0.00022465,2]
[358601998,1745301047971,-500.0,0.00022465,2]
[358601999,1745301047980,-500.0,0.00022465,2]
[358602000,1745301047990,-500.0,0.00022465,2]
[358602001,1745301048000,-151.0,0.00022465,7]
[358602002,1745301048010,-4052.23,0.00022465,2]
[358602003,1745301048019,-500.0,0.00022465,2]
[358602004,1745301048028,-151.0,0.00022465,7]
[358602005,1745301048038,-548.765978,0.00022465,7]
[358602006,1745301048047,-500.0,0.00022465,2]
[358602007,1745301048056,-548.765978,0.00022465,7]
[358602008,1745301048066,-500.0,0.00022465,2]
[358602009,1745301048075,-500.0,0.00022465,2]
[358602010,1745301048084,-500.0,0.00022465,2]
[358602011,1745301048094,-500.0,0.00022465,2]
[358602012,1745301048103,-7322.75,0.00022465,2]
[358602013,1745301048112,-502.6676158,0.00022465,2]
[358602014,1745301048122,-887.31,0.00022465,2]
[358602015,1745301048131,-500.0,0.00022465,2]
[358602016,1745301048140,-500.0,0.00022465,2]
[358602017,1745301048150,-500.0,0.00022465,2]
[358602018,1745301048159,-500.0,0.00022465,2]
[358602019,1745301048169,-500.0,0.00022465,2]
[358602020,1745301048179,-500.0,0.00022465,2]
[358602021,1745301048189,-500.0,0.00022465,2]
[358602022,1745301048198,-420.0,0.00022546,2]
[358602023,1745301048208,-302.55878051,0.00022639,2]
[358602024,1745301048217,-1680.0,0.00022654,2]
[358602025,1745301048227,-1428.69231052,0.0002269,2]
[358602026,1745301048236,-500.0,0.00022703,2]
[358602027,1745301048246,-300.0,0.00022703,2]
[358602028,1745301048255,-502.76407956,0.00022703,2]
[358602029,1745301048264,-500.0,0.00022703,2]
[358602030,1745301048273,-500.0,0.00022703,2]
[358602031,1745301048283,-436.96805957,0.00022703,2]
[358602032,1745301049031,-500.0,0.00021916,2]
[358602033,1745301049040,-500.0,0.00021916,2]
[358602034,1745301049050,-500.0,0.00021916,2]
[358602035,1745301049060,-500.0,0.00021916,2]
[358602036,1745301049069,-313.95697712,0.00021916,2]
[358602037,1745301049079,-500.0,0.00021916,2]
[358602038,1745301049088,-310.28612547,0.00021916,2]
[358602039,1745301049098,-13.02887008,0.00021916,2]
[358602082,1745302232084,-300.0,0.00020264,2]
[358602084,1745302232094,-568.79964717,0.00020264,2]
[358602090,1745302232142,-631.20035283,0.00020264,2]
[358602092,1745302232151,-27829.57130551,0.00020265,2]
[358602094,1745302232161,-1059.72424303,0.00020365,2]
[358602096,1745302232170,-12111.3778794,0.00020854,2]
[358602098,1745302232180,-4908.29993038,0.0002099,2]
[358602100,1745302232189,-242.04702444,0.00021817,2]
[358602102,1745302232199,-152.0,0.000219,2]
[358602104,1745302232209,-220.48538996,0.00021904,2]
[358602106,1745302232219,-189.25229619,0.00021904,2]
[358602108,1745302232231,-207.4,0.00021904,2]
[358602110,1745302232241,-216.86128419,0.00021915,2]
[358602112,1745302232250,-500.0,0.00021915,2]
[358602114,1745302232260,-500.0,0.00021915,2]
[358602116,1745302232269,-352.35730259,0.00021915,2]
[358602118,1745302232278,-500.0,0.00021915,2]
[358602120,1745302232288,-500.0,0.00021915,2]
[358602122,1745302232300,-500.0,0.00021915,2]
[358602124,1745302232310,-500.0,0.00021915,2]
[358602126,1745302232319,-500.0,0.00021915,2]
[358602127,1745302232328,-500.0,0.00021915,2]
[358602129,1745302232337,-500.0,0.00021915,2]
[358602131,1745302232348,-500.0,0.00021915,2]
[358602133,1745302232358,-500.0,0.00021915,2]
[358602134,1745302232367,-500.0,0.00021915,2]
[358602136,1745302232377,-500.0,0.00021915,2]
[358602138,1745302232388,-500.0,0.00021915,2]
[358602139,1745302232397,-500.0,0.00021915,2]
[358602141,1745302232406,-500.0,0.00021915,2]
[358602143,1745302232416,-500.0,0.00021915,2]
[358602144,1745302232425,-500.0,0.00021915,2]
[358602146,1745302232434,-500.0,0.00021915,2]
[358602147,1745302232443,-500.0,0.00021915,2]
[358602149,1745302232453,-500.0,0.00021915,2]
[358602151,1745302232462,-500.0,0.00021915,2]
[358602152,1745302232471,-500.0,0.00021915,2]
[358602154,1745302232480,-500.0,0.00021915,2]
[358602155,1745302232489,-500.0,0.00021915,2]
[358602156,1745302232498,-500.0,0.00021915,2]
[358602157,1745302232507,-192.45322622,0.00021915,2]
[358602158,1745302232517,-500.0,0.00021915,2]
[358602159,1745302232526,-500.0,0.00021915,2]
[358602160,1745302232536,-500.0,0.00021915,2]
[358602161,1745302232545,-500.0,0.00021915,2]
[358602162,1745302232554,-500.0,0.00021915,2]
[358602163,1745302232564,-500.0,0.00021915,2]
[358602164,1745302232573,-500.0,0.00021915,2]
[358602165,1745302232582,-500.0,0.00021915,2]
[358602166,1745302232591,-500.0,0.00021915,2]
[358602167,1745302232600,-500.0,0.00021915,2]
[358602168,1745302232609,-500.0,0.00021915,2]
[358602169,1745302232618,-500.0,0.00021915,2]
[358602170,1745302232627,-500.0,0.00021915,2]
[358602171,1745302232637,-500.0,0.00021915,2]
[358602172,1745302232646,-500.0,0.00021915,2]
[358602173,1745302232656,-500.0,0.00021915,2]
[358602174,1745302232666,-500.0,0.00021915,2]
[358602175,1745302232675,-238.05035847,0.00021915,2]
[358602176,1745302232684,-500.0,0.00021915,2]
[358602177,1745302232693,-500.0,0.00021915,2]
[358602178,1745302232703,-500.0,0.00021915,2]
[358602179,1745302232713,-500.0,0.00021915,2]
[358602180,1745302232722,-500.0,0.00021915,2]
[358602181,1745302232733,-500.0,0.00021915,2]
[358602182,1745302232743,-500.0,0.00021915,2]
[358602183,1745302232753,-308.29548971,0.00021916,2]
[358602184,1745302232763,-352.65011329,0.00021916,2]
[358602191,1745302238169,-2646.025418,0.00020754,2]
[358602193,1745302238179,-147.34988671,0.00021916,2]
[358602194,1745302238188,-500.0,0.00021916,2]
[358602196,1745302238197,-340.68912317,0.00021916,2]
[358602198,1745302238207,-500.0,0.00021916,2]
[358602199,1745302238216,-467.67218185,0.00021916,2]
[358602200,1745302238225,-14018.43228708,0.00021916,2]
[358602201,1745302238238,-2923.75466224,0.00021916,2]
[358602202,1745302238249,-1558.96292509,0.00021916,2]
[358602203,1745302238285,-821.1406638,0.00021916,2]
[358602204,1745302238297,-29290.10946179,0.00021916,2]
[358602205,1745302238311,-502.15959612,0.00021917,2]
[358602206,1745302238321,-500.0,0.00021917,2]
[358602207,1745302238331,-502.73462613,0.00021917,2]
[358602208,1745302238342,-500.65826976,0.00021917,2]
[358602209,1745302238352,-500.0,0.00021917,2]
[358602210,1745302238362,-500.0,0.00021917,2]
[358602211,1745302238371,-500.0,0.00021917,2]
[358602212,1745302238383,-500.0,0.00021917,2]
[358602213,1745302238393,-500.0,0.00021917,2]
[358602214,1745302238403,-500.0,0.00021917,2]
[358602215,1745302238413,-500.0,0.00021917,2]
[358602216,1745302238423,-502.58193293,0.00021917,2]
[358602217,1745302238433,-427.65723263,0.00021917,2]
[358602218,1745302238443,-500.0,0.00021917,2]
[358602219,1745302238452,-500.0,0.00021917,2]
[358602220,1745302238462,-500.0,0.00021917,2]
[358602221,1745302238472,-500.0,0.00021917,2]
[358602222,1745302238482,-501.26423609,0.00021917,2]
[358602223,1745302238493,-500.0,0.00021917,2]
[358602224,1745302238503,-500.0,0.00021917,2]
[358602225,1745302238513,-500.0,0.00021917,2]
[358602226,1745302238523,-500.0,0.00021917,2]
[358602227,1745302238533,-503.67644819,0.00021917,2]
[358602228,1745302238543,-640.90874238,0.00021917,2]
[358602229,1745302238553,-500.0,0.00021917,2]
[358602230,1745302238563,-500.0,0.00021917,2]
[358602231,1745302238572,-500.0,0.00021917,2]
[358602232,1745302238673,-575.4553595,0.00021917,2]
[358602233,1745302238683,-500.0,0.00021917,2]
[358602234,1745302238692,-500.0,0.00021917,2]
[358602235,1745302238702,-500.0,0.00021917,2]
[358602236,1745302238711,-500.0,0.00021917,2]
[358602237,1745302238721,-500.0,0.00021917,2]
[358602238,1745302238731,-638.43838026,0.00021917,2]
[358602239,1745302238742,-500.0,0.00021917,2]
[358602240,1745302238752,-834.55,0.00021917,2]
[358602241,1745302238761,-500.0,0.00021917,2]
[358602242,1745302238773,-500.0,0.00021917,2]
[358602243,1745302238782,-500.0,0.00021917,2]
[358602244,1745302238792,-500.0,0.00021917,2]
[358602245,1745302238802,-500.0,0.00021917,2]
[358602246,1745302238811,-500.0,0.00021917,2]
[358602247,1745302238821,-1000.0,0.00021917,2]
[358602248,1745302238831,-500.0,0.00021917,2]
[358602249,1745302238840,-500.0,0.00021917,2]
[358602250,1745302238849,-500.0,0.00021917,2]
[358602251,1745302238859,-500.0,0.00021917,2]
[358602252,1745302238869,-500.0,0.00021917,2]
[358602253,1745302238879,-500.0,0.00021917,2]
[358602254,1745302238888,-506.31303651,0.00021917,2]
[358602255,1745302238897,-500.0,0.00021917,2]
[358602256,1745302238907,-500.0,0.00021917,2]
[358602257,1745302238916,-500.0,0.00021917,2]
[358602258,1745302238925,-500.0,0.00021917,2]
[358602259,1745302238934,-500.0,0.00021917,2]
[358602260,1745302238944,-503.14257942,0.00021917,2]
[358602261,1745302238953,-500.0,0.00021917,2]
[358602262,1745302238963,-500.0,0.00021917,2]
[358602263,1745302238972,-500.0,0.00021917,2]
[358602264,1745302238981,-612.3633704,0.00021917,2]
[358602265,1745302238992,-500.0,0.00021917,2]
[358602266,1745302239002,-500.0,0.00021917,2]
[358602267,1745302239011,-649.4590962,0.00021917,2]
[358602268,1745302239021,-560.1365621,0.00021917,2]
[358602269,1745302239030,-500.0,0.00021917,2]
[358602270,1745302239039,-500.0,0.00021917,2]
[358602271,1745302239049,-500.0,0.00021917,2]
[358602272,1745302239059,-690.1,0.00021917,2]
[358602273,1745302239068,-500.0,0.00021917,2]
[358602274,1745302239077,-500.0,0.00021917,2]
[358602275,1745302239087,-462.06803139,0.00021917,2]
[358602276,1745302239098,-500.0,0.00021917,2]
[358602277,1745302239108,-500.9594006,0.00021917,2]
[358602278,1745302239118,-500.0,0.00021917,2]
[358602279,1745302239129,-500.0,0.00021917,2]
[358602280,1745302239138,-500.0,0.00021917,2]
[358602281,1745302239147,-500.0,0.00021917,2]
[358602282,1745302239158,-500.0,0.00021917,2]
[358602283,1745302239167,-500.0,0.00021917,2]
[358602284,1745302239176,-500.0,0.00021917,2]
[358602285,1745302239185,-500.0,0.00021917,2]
[358602286,1745302239194,-500.0,0.00021917,2]
[358602287,1745302239203,-500.0,0.00021917,2]
[358602288,1745302239212,-500.0,0.00021917,2]
[358602289,1745302239221,-1122.82,0.00021917,2]
[358602290,1745302239231,-500.0,0.00021917,2]
[358602291,1745302239241,-500.0,0.00021917,2]
[358602292,1745302239250,-500.0,0.00021917,2]
[358602293,1745302239260,-500.0,0.00021917,2]
[358602294,1745302239270,-500.0,0.00021917,2]
[358602295,1745302239279,-500.0,0.00021917,2]
[358602296,1745302239288,-500.0,0.00021917,2]
[358602297,1745302239301,-500.0,0.00021917,2]
[358602298,1745302239310,-500.0,0.00021917,2]
[358602299,1745302239320,-500.0,0.00021917,2]
[358602300,1745302239329,-500.0,0.00021917,2]
[358602301,1745302239339,-500.0,0.00021917,2]
[358602302,1745302239349,-500.0,0.00021917,2]
[358602303,1745302239358,-500.0,0.00021917,2]
[358602304,1745302239367,-500.0,0.00021917,2]
[358602305,1745302239377,-500.0,0.00021917,2]
[358602306,1745302239386,-500.0,0.00021917,2]
[358602307,1745302239395,-500.0,0.00021917,2]
[358602308,1745302239405,-229.05436689,0.00021917,2]
[358602309,1745302239414,-512.3151952,0.00021917,2]
[358602310,1745302239423,-500.0,0.00021917,2]
[358602311,1745302239433,-696.73,0.00021917,2]
[358602312,1745302239443,-507.29720849,0.00021917,2]
[358602313,1745302239452,-500.0,0.00021917,2]
[358602314,1745302239463,-500.0,0.00021917,2]